[Event "Titled Tuesday Blitz February 22 Early 2022"]
[White "Atakhan, Abtin"]
[Black "Martin, Lewis"]
[WhiteFideId "22502203"]
[BlackFideId "410551"]
[WhiteElo "2119"]
[BlackElo "2145"]
[Result "1-0"]
[Round "04"]
[TimeControl "180+1"]
[Date "2022.02.22"]
[WhiteClock "0:00:43"]
[BlackClock "0:00:20"]

1. e4 {[%clk 0:03:00]}  c5 {[%clk 0:02:59]} 2. Nc3 {[%clk 0:03:01]}  Nc6 {[%clk 0:02:59]} 3. Bb5 {[%clk 0:03:01]}  Nd4 {[%clk 0:02:59]} 4. Nf3 {[%clk 0:03:02]}  a6 {[%clk 0:02:59]} 5. Bd3 {[%clk 0:02:56]}  g6 {[%clk 0:02:58]} 6. O-O {[%clk 0:02:50]}  Bg7 {[%clk 0:02:55]} 7. Nxd4 {[%clk 0:02:50]}  cxd4 {[%clk 0:02:55]} 8. Ne2 {[%clk 0:02:50]}  d5 {[%clk 0:02:55]} 9. c3 {[%clk 0:02:48]}  dxe4 {[%clk 0:02:49]} 10. Bxe4 {[%clk 0:02:47]}  Nf6 {[%clk 0:02:45]} 11. Bd3 {[%clk 0:02:46]}  dxc3 {[%clk 0:02:42]} 12. dxc3 {[%clk 0:02:46]}  O-O {[%clk 0:02:42]} 13. Bf4 {[%clk 0:02:40]}  b5 {[%clk 0:02:42]} 14. a4 {[%clk 0:02:37]}  bxa4 {[%clk 0:02:35]} 15. Rxa4 {[%clk 0:02:34]}  Bb7 {[%clk 0:02:33]} 16. Rd4 {[%clk 0:02:16]}  Qb6 {[%clk 0:02:24]} 17. Be5 {[%clk 0:02:10]}  Qc6 {[%clk 0:02:07]} 18. f3 {[%clk 0:02:07]}  Rfd8 {[%clk 0:02:05]} 19. Kh1 {[%clk 0:02:06]}  Rxd4 {[%clk 0:01:47]} 20. Nxd4 {[%clk 0:02:06]}  Qd5 {[%clk 0:01:46]} 21. Re1 {[%clk 0:02:03]}  Ng4 {[%clk 0:01:41]} 22. Bg3 {[%clk 0:01:53]}  Be5 {[%clk 0:01:20]} 23. Rxe5 {[%clk 0:01:10]}  Nxe5 {[%clk 0:01:01]} 24. Be4 {[%clk 0:01:09]}  Qd7 {[%clk 0:00:59]} 25. Bxe5 {[%clk 0:01:01]}  Bxe4 {[%clk 0:00:56]} 26. fxe4 {[%clk 0:01:02]}  f6 {[%clk 0:00:49]} 27. Bg3 {[%clk 0:01:01]}  e5 {[%clk 0:00:45]} 28. Qb3+ {[%clk 0:00:59]}  Kh8 {[%clk 0:00:38]} 29. Nf3 {[%clk 0:00:54]}  Qb5 {[%clk 0:00:33]} 30. Qf7 {[%clk 0:00:45]}  Qf1+ {[%clk 0:00:23]} 31. Ng1 {[%clk 0:00:45]}  Rd8 {[%clk 0:00:20]} 32. Bxe5 {[%clk 0:00:43]} 1-0


[Site "https://www.chess.com"]

[Event "Titled Tuesday Blitz February 22 Early 2022"]
[White "Barbashin, Igor"]
[Black "Mejia, Cherry Ann"]
[WhiteFideId "4155718"]
[BlackFideId "5206880"]
[WhiteElo "2138"]
[BlackElo "2007"]
[Result "1-0"]
[Round "04"]
[TimeControl "180+1"]
[Date "2022.02.22"]
[WhiteClock "0:01:41"]
[BlackClock "0:01:43"]

1. d4 {[%clk 0:03:00]}  d5 {[%clk 0:03:00]} 2. c4 {[%clk 0:03:01]}  dxc4 {[%clk 0:03:00]} 3. Nc3 {[%clk 0:03:01]}  a6 {[%clk 0:02:59]} 4. Nf3 {[%clk 0:03:02]}  b5 {[%clk 0:02:59]} 5. g3 {[%clk 0:02:59]}  Bb7 {[%clk 0:02:59]} 6. Bg2 {[%clk 0:02:59]}  e6 {[%clk 0:02:59]} 7. O-O {[%clk 0:02:59]}  Nf6 {[%clk 0:03:00]} 8. a4 {[%clk 0:02:57]}  b4 {[%clk 0:02:58]} 9. Nb1 {[%clk 0:02:57]}  c5 {[%clk 0:02:58]} 10. dxc5 {[%clk 0:02:55]}  Qxd1 {[%clk 0:02:58]} 11. Rxd1 {[%clk 0:02:54]}  Bxc5 {[%clk 0:02:59]} 12. Ne5 {[%clk 0:02:52]}  Bxg2 {[%clk 0:02:56]} 13. Kxg2 {[%clk 0:02:51]}  O-O {[%clk 0:02:56]} 14. Nxc4 {[%clk 0:02:50]}  Rc8 {[%clk 0:02:50]} 15. Bf4 {[%clk 0:02:44]}  Nbd7 {[%clk 0:02:48]} 16. Nbd2 {[%clk 0:02:36]}  Nd5 {[%clk 0:02:46]} 17. Nb3 {[%clk 0:02:29]}  N7f6 {[%clk 0:02:38]} 18. Rac1 {[%clk 0:02:17]}  h6 {[%clk 0:02:17]} 19. Be5 {[%clk 0:02:13]}  Ng4 {[%clk 0:02:08]} 20. Bd4 {[%clk 0:02:05]}  Bxd4 {[%clk 0:02:04]} 21. Rxd4 {[%clk 0:02:04]}  f5 {[%clk 0:01:48]} 22. h3 {[%clk 0:01:59]}  Ngf6 {[%clk 0:01:48]} 23. e3 {[%clk 0:01:49]}  Rc7 {[%clk 0:01:48]} 24. Nd6 {[%clk 0:01:43]}  Rac8 {[%clk 0:01:46]} 25. Nxc8 {[%clk 0:01:41]}  Rxc1 {[%clk 0:01:43]} 26. Nxc1 {[%clk 0:01:41]} 1-0


[Site "https://www.chess.com"]

[Event "Titled Tuesday Blitz February 22 Early 2022"]
[White "Barrientos, Sergio E"]
[Black "Kashefi, Amir Hosein"]
[WhiteFideId "4401824"]
[BlackFideId "12557935"]
[WhiteElo "2441"]
[BlackElo "2098"]
[Result "1-0"]
[Round "04"]
[TimeControl "180+1"]
[Date "2022.02.22"]
[WhiteClock "0:00:58"]
[BlackClock "0:00:01"]

1. d4 {[%clk 0:02:55]}  b6 {[%clk 0:02:49]} 2. e4 {[%clk 0:02:53]}  Bb7 {[%clk 0:02:49]} 3. Bd3 {[%clk 0:02:52]}  e6 {[%clk 0:02:48]} 4. Nf3 {[%clk 0:02:51]}  c5 {[%clk 0:02:47]} 5. c3 {[%clk 0:02:51]}  a6 {[%clk 0:02:41]} 6. O-O {[%clk 0:02:50]}  d6 {[%clk 0:02:42]} 7. Re1 {[%clk 0:02:50]}  Nf6 {[%clk 0:02:42]} 8. Nbd2 {[%clk 0:02:50]}  Be7 {[%clk 0:02:41]} 9. Nf1 {[%clk 0:02:50]}  O-O {[%clk 0:02:41]} 10. Ng3 {[%clk 0:02:50]}  Re8 {[%clk 0:02:30]} 11. h3 {[%clk 0:02:50]}  Nc6 {[%clk 0:02:22]} 12. a3 {[%clk 0:02:49]}  e5 {[%clk 0:02:12]} 13. d5 {[%clk 0:02:44]}  Nb8 {[%clk 0:02:10]} 14. b4 {[%clk 0:02:45]}  g6 {[%clk 0:02:06]} 15. Rb1 {[%clk 0:02:45]}  Nbd7 {[%clk 0:02:02]} 16. Be3 {[%clk 0:02:41]}  b5 {[%clk 0:01:59]} 17. c4 {[%clk 0:02:40]}  bxc4 {[%clk 0:01:37]} 18. Bxc4 {[%clk 0:02:41]}  Nb6 {[%clk 0:01:36]} 19. Bf1 {[%clk 0:02:39]}  c4 {[%clk 0:01:34]} 20. a4 {[%clk 0:02:36]}  Rc8 {[%clk 0:01:31]} 21. a5 {[%clk 0:02:30]}  Nbxd5 {[%clk 0:01:20]} 22. exd5 {[%clk 0:02:29]}  Nxd5 {[%clk 0:01:20]} 23. Qc2 {[%clk 0:02:11]}  Nxe3 {[%clk 0:01:09]} 24. Rxe3 {[%clk 0:02:10]}  Bf6 {[%clk 0:01:09]} 25. Rbe1 {[%clk 0:01:52]}  d5 {[%clk 0:01:01]} 26. Nxe5 {[%clk 0:01:40]}  d4 {[%clk 0:01:01]} 27. Nxf7 {[%clk 0:01:40]}  Qd5 {[%clk 0:00:14]} 28. Rxe8+ {[%clk 0:01:38]}  Rxe8 {[%clk 0:00:14]} 29. Rxe8+ {[%clk 0:01:34]}  Kg7 {[%clk 0:00:11]} 30. Qxc4 {[%clk 0:01:20]}  Qd7 {[%clk 0:00:04]} 31. Rb8 {[%clk 0:01:18]}  d3 {[%clk 0:00:03]} 32. Nd6 {[%clk 0:01:15]}  d2 {[%clk 0:00:04]} 33. Ne8+ {[%clk 0:01:11]}  Kh6 {[%clk 0:00:03]} 34. Nxf6 {[%clk 0:01:06]}  d1=Q {[%clk 0:00:03]} 35. Qh4+ {[%clk 0:01:03]}  Kg7 {[%clk 0:00:03]} 36. Nxd7 {[%clk 0:01:02]}  Qxd7 {[%clk 0:00:02]} 37. Rd8 {[%clk 0:01:01]}  Qc6 {[%clk 0:00:01]} 38. Qd4+ {[%clk 0:00:58]} 1-0


[Site "https://www.chess.com"]

[Event "Titled Tuesday Blitz February 22 Early 2022"]
[White "Barus, Cerdas"]
[Black "Dew, Brian"]
[WhiteFideId "7100094"]
[BlackFideId "6000495"]
[WhiteElo "2140"]
[BlackElo "2118"]
[Result "0-1"]
[Round "04"]
[TimeControl "180+1"]
[Date "2022.02.22"]
[WhiteClock "0:00:01"]
[BlackClock "0:00:01"]

1. d4 {[%clk 0:03:00]}  d5 {[%clk 0:02:59]} 2. c4 {[%clk 0:02:59]}  c6 {[%clk 0:02:56]} 3. Nc3 {[%clk 0:02:58]}  Nf6 {[%clk 0:02:53]} 4. cxd5 {[%clk 0:02:55]}  cxd5 {[%clk 0:02:52]} 5. Bf4 {[%clk 0:02:54]}  Bf5 {[%clk 0:02:48]} 6. e3 {[%clk 0:02:54]}  a6 {[%clk 0:02:48]} 7. Qb3 {[%clk 0:02:42]}  b5 {[%clk 0:02:01]} 8. Nf3 {[%clk 0:02:27]}  Nc6 {[%clk 0:01:49]} 9. Ne5 {[%clk 0:02:22]}  Na5 {[%clk 0:01:26]} 10. Qd1 {[%clk 0:02:17]}  Qb6 {[%clk 0:01:12]} 11. Be2 {[%clk 0:02:05]}  h6 {[%clk 0:01:03]} 12. O-O {[%clk 0:02:03]}  e6 {[%clk 0:01:02]} 13. Rc1 {[%clk 0:01:55]}  Be7 {[%clk 0:00:59]} 14. Bd3 {[%clk 0:01:37]}  Bxd3 {[%clk 0:00:57]} 15. Qxd3 {[%clk 0:01:37]}  Nc4 {[%clk 0:00:51]} 16. b3 {[%clk 0:01:26]}  Nd6 {[%clk 0:00:50]} 17. a4 {[%clk 0:01:20]}  b4 {[%clk 0:00:47]} 18. Ne2 {[%clk 0:01:14]}  O-O {[%clk 0:00:17]} 19. Nc6 {[%clk 0:00:46]}  Rfe8 {[%clk 0:00:09]} 20. Nxe7+ {[%clk 0:00:44]}  Rxe7 {[%clk 0:00:09]} 21. f3 {[%clk 0:00:40]}  Rc7 {[%clk 0:00:03]} 22. Rxc7 {[%clk 0:00:38]}  Qxc7 {[%clk 0:00:04]} 23. Rc1 {[%clk 0:00:37]}  Qd7 {[%clk 0:00:04]} 24. h3 {[%clk 0:00:27]}  Nfe8 {[%clk 0:00:02]} 25. Kf2 {[%clk 0:00:24]}  Nb7 {[%clk 0:00:02]} 26. Qc2 {[%clk 0:00:21]}  Na5 {[%clk 0:00:01]} 27. Bh2 {[%clk 0:00:14]}  Nd6 {[%clk 0:00:01]} 28. Bxd6 {[%clk 0:00:11]}  Qxd6 {[%clk 0:00:02]} 29. Nf4 {[%clk 0:00:10]}  e5 {[%clk 0:00:01]} 30. Nd3 {[%clk 0:00:09]}  exd4 {[%clk 0:00:01]} 31. exd4 {[%clk 0:00:09]}  Re8 {[%clk 0:00:02]} 32. Qc5 {[%clk 0:00:01]}  Qg6 {[%clk 0:00:01]} 0-1


[Site "https://www.chess.com"]

[Event "Titled Tuesday Blitz February 22 Early 2022"]
[White "Berezin, Viktor"]
[Black "Bodnar, Nikolay"]
[WhiteFideId "14107872"]
[BlackFideId "14106469"]
[WhiteElo "2310"]
[BlackElo "2296"]
[Result "0-1"]
[Round "04"]
[TimeControl "180+1"]
[Date "2022.02.22"]
[WhiteClock "0:00:04"]
[BlackClock "0:00:12"]

1. d4 {[%clk 0:02:55]}  Nf6 {[%clk 0:02:59]} 2. Nf3 {[%clk 0:02:55]}  d5 {[%clk 0:02:59]} 3. c4 {[%clk 0:02:52]}  e6 {[%clk 0:02:59]} 4. g3 {[%clk 0:02:50]}  Bb4+ {[%clk 0:02:58]} 5. Bd2 {[%clk 0:02:49]}  Be7 {[%clk 0:02:58]} 6. Bg2 {[%clk 0:02:48]}  O-O {[%clk 0:02:58]} 7. Qc2 {[%clk 0:02:45]}  c6 {[%clk 0:02:57]} 8. O-O {[%clk 0:02:43]}  Nbd7 {[%clk 0:02:57]} 9. Bf4 {[%clk 0:02:43]}  b6 {[%clk 0:02:55]} 10. Nbd2 {[%clk 0:02:39]}  Ba6 {[%clk 0:02:50]} 11. b3 {[%clk 0:02:37]}  c5 {[%clk 0:02:42]} 12. e4 {[%clk 0:02:29]}  cxd4 {[%clk 0:02:09]} 13. e5 {[%clk 0:02:24]}  Nh5 {[%clk 0:02:09]} 14. Nxd4 {[%clk 0:02:19]}  Nxf4 {[%clk 0:02:07]} 15. gxf4 {[%clk 0:02:19]}  Rc8 {[%clk 0:02:07]} 16. Rac1 {[%clk 0:02:13]}  Ba3 {[%clk 0:01:55]} 17. Rcd1 {[%clk 0:02:10]}  Qh4 {[%clk 0:01:53]} 18. Nb1 {[%clk 0:02:03]}  Be7 {[%clk 0:01:47]} 19. Qd2 {[%clk 0:01:28]}  Nc5 {[%clk 0:01:30]} 20. cxd5 {[%clk 0:01:17]}  Bxf1 {[%clk 0:01:10]} 21. Rxf1 {[%clk 0:00:57]}  Rfd8 {[%clk 0:00:48]} 22. d6 {[%clk 0:00:52]}  Bxd6 {[%clk 0:00:48]} 23. exd6 {[%clk 0:00:52]}  Rxd6 {[%clk 0:00:49]} 24. Qe3 {[%clk 0:00:47]}  Qf6 {[%clk 0:00:42]} 25. Nc6 {[%clk 0:00:13]}  Rdxc6 {[%clk 0:00:35]} 26. Bxc6 {[%clk 0:00:14]}  Rxc6 {[%clk 0:00:36]} 27. Rd1 {[%clk 0:00:13]}  g6 {[%clk 0:00:34]} 28. Nd2 {[%clk 0:00:13]}  Rd6 {[%clk 0:00:33]} 29. Re1 {[%clk 0:00:11]}  Rd3 {[%clk 0:00:31]} 30. Qe2 {[%clk 0:00:11]}  Qxf4 {[%clk 0:00:30]} 31. Nc4 {[%clk 0:00:12]}  Rd5 {[%clk 0:00:24]} 32. Ne3 {[%clk 0:00:09]}  Rg5+ {[%clk 0:00:24]} 33. Kh1 {[%clk 0:00:07]}  Ne4 {[%clk 0:00:19]} 34. f3 {[%clk 0:00:07]}  Nc3 {[%clk 0:00:16]} 35. Qd3 {[%clk 0:00:05]}  Rh5 {[%clk 0:00:16]} 36. Qc2 {[%clk 0:00:03]}  Qxf3+ {[%clk 0:00:13]} 37. Kg1 {[%clk 0:00:03]}  Rg5+ {[%clk 0:00:13]} 38. Ng2 {[%clk 0:00:02]}  Nd5 {[%clk 0:00:13]} 39. Kh1 {[%clk 0:00:02]}  Nf4 {[%clk 0:00:12]} 40. Rg1 {[%clk 0:00:02]}  Rxg2 {[%clk 0:00:11]} 41. Rxg2 {[%clk 0:00:02]}  Nxg2 {[%clk 0:00:10]} 42. Qxg2 {[%clk 0:00:03]}  Qxg2+ {[%clk 0:00:11]} 43. Kxg2 {[%clk 0:00:03]}  e5 {[%clk 0:00:11]} 44. Kf3 {[%clk 0:00:04]}  f5 {[%clk 0:00:12]} 0-1


[Site "https://www.chess.com"]

[Event "Titled Tuesday Blitz February 22 Early 2022"]
[White "Bintang, Rasyid A. Hidayat"]
[Black "Gabdrakhmanov, Azat"]
[WhiteFideId "7105355"]
[BlackFideId "34189197"]
[WhiteElo "2360"]
[BlackElo "2279"]
[Result "0-1"]
[Round "04"]
[TimeControl "180+1"]
[Date "2022.02.22"]
[WhiteClock "0:00:12"]
[BlackClock "0:00:04"]

1. d4 {[%clk 0:03:00]}  Nf6 {[%clk 0:02:59]} 2. Nf3 {[%clk 0:02:53]}  g6 {[%clk 0:03:00]} 3. g3 {[%clk 0:02:53]}  Bg7 {[%clk 0:03:01]} 4. Bg2 {[%clk 0:02:52]}  O-O {[%clk 0:03:01]} 5. O-O {[%clk 0:02:53]}  d6 {[%clk 0:03:02]} 6. b3 {[%clk 0:02:37]}  c5 {[%clk 0:03:02]} 7. Bb2 {[%clk 0:02:38]}  Nc6 {[%clk 0:03:02]} 8. e3 {[%clk 0:02:37]}  cxd4 {[%clk 0:03:01]} 9. Nxd4 {[%clk 0:02:36]}  Bd7 {[%clk 0:03:01]} 10. c4 {[%clk 0:02:32]}  Rc8 {[%clk 0:03:01]} 11. Nc3 {[%clk 0:02:07]}  a6 {[%clk 0:02:58]} 12. Rc1 {[%clk 0:02:06]}  Nxd4 {[%clk 0:02:57]} 13. exd4 {[%clk 0:02:07]}  b5 {[%clk 0:02:56]} 14. Bb7 {[%clk 0:02:03]}  Rb8 {[%clk 0:02:46]} 15. Bxa6 {[%clk 0:02:03]}  b4 {[%clk 0:02:46]} 16. Ne2 {[%clk 0:02:02]}  Qa5 {[%clk 0:02:32]} 17. Bb5 {[%clk 0:02:02]}  Bxb5 {[%clk 0:02:32]} 18. cxb5 {[%clk 0:02:03]}  Rxb5 {[%clk 0:02:30]} 19. Ra1 {[%clk 0:01:57]}  h5 {[%clk 0:02:24]} 20. h4 {[%clk 0:01:57]}  Rf5 {[%clk 0:02:16]} 21. Qd3 {[%clk 0:01:55]}  Ng4 {[%clk 0:02:11]} 22. Kg2 {[%clk 0:01:54]}  Qd5+ {[%clk 0:02:09]} 23. Kg1 {[%clk 0:01:50]}  g5 {[%clk 0:01:49]} 24. f3 {[%clk 0:01:46]}  Nf6 {[%clk 0:01:44]} 25. hxg5 {[%clk 0:01:46]}  Rxg5 {[%clk 0:01:44]} 26. Kg2 {[%clk 0:01:46]}  h4 {[%clk 0:01:42]} 27. g4 {[%clk 0:01:45]}  Rxg4+ {[%clk 0:01:37]} 28. Kh3 {[%clk 0:01:43]}  Rg5 {[%clk 0:01:22]} 29. Rg1 {[%clk 0:01:38]}  Nh5 {[%clk 0:00:57]} 30. Qe4 {[%clk 0:01:30]}  Qf5+ {[%clk 0:00:37]} 31. Qxf5 {[%clk 0:01:29]}  Rxf5 {[%clk 0:00:37]} 32. Raf1 {[%clk 0:01:29]}  Kh7 {[%clk 0:00:34]} 33. Kxh4 {[%clk 0:01:29]}  Bf6+ {[%clk 0:00:34]} 34. Kg4 {[%clk 0:01:27]}  Ra5 {[%clk 0:00:33]} 35. Ra1 {[%clk 0:01:11]}  Rg8+ {[%clk 0:00:33]} 36. Kh3 {[%clk 0:01:08]}  Rxg1 {[%clk 0:00:33]} 37. Nxg1 {[%clk 0:01:09]}  Nf4+ {[%clk 0:00:31]} 38. Kg4 {[%clk 0:01:08]}  Nd3 {[%clk 0:00:32]} 39. Bc1 {[%clk 0:00:54]}  Bxd4 {[%clk 0:00:30]} 40. Rb1 {[%clk 0:00:44]}  Rxa2 {[%clk 0:00:17]} 41. Nh3 {[%clk 0:00:43]}  Rg2+ {[%clk 0:00:17]} 42. Kh4 {[%clk 0:00:42]}  Bf6+ {[%clk 0:00:15]} 43. Bg5 {[%clk 0:00:42]}  Ne5 {[%clk 0:00:10]} 44. Rf1 {[%clk 0:00:34]}  Ng6+ {[%clk 0:00:09]} 45. Kh5 {[%clk 0:00:33]}  Rg3 {[%clk 0:00:09]} 46. Bxf6 {[%clk 0:00:25]}  exf6 {[%clk 0:00:09]} 47. Rh1 {[%clk 0:00:20]}  Kg7 {[%clk 0:00:08]} 48. f4 {[%clk 0:00:18]}  f5 {[%clk 0:00:05]} 49. Ng5 {[%clk 0:00:17]}  f6 {[%clk 0:00:05]} 50. Ne6+ {[%clk 0:00:15]}  Kf7 {[%clk 0:00:06]} 51. Nd8+ {[%clk 0:00:15]}  Ke8 {[%clk 0:00:05]} 52. Ne6 {[%clk 0:00:12]}  Ke7 {[%clk 0:00:04]} 53. Ng7 {[%clk 0:00:12]}  Nxf4+ {[%clk 0:00:04]} 54. Kh4 {[%clk 0:00:12]}  Rg4# {[%clk 0:00:04]} 0-1


[Site "https://www.chess.com"]

[Event "Titled Tuesday Blitz February 22 Early 2022"]
[White "Brunner, Nicolas"]
[Black "Priasmoro, Novendra"]
[WhiteFideId "620246"]
[BlackFideId "7105029"]
[WhiteElo "2526"]
[BlackElo "2753"]
[Result "0-1"]
[Round "04"]
[TimeControl "180+1"]
[Date "2022.02.22"]
[WhiteClock "0:00:03"]
[BlackClock "0:01:11"]

1. d4 {[%clk 0:03:00]}  Nf6 {[%clk 0:03:00]} 2. c4 {[%clk 0:03:00]}  g6 {[%clk 0:02:59]} 3. Nf3 {[%clk 0:02:59]}  Bg7 {[%clk 0:03:00]} 4. Nc3 {[%clk 0:03:00]}  d6 {[%clk 0:03:01]} 5. e4 {[%clk 0:03:00]}  O-O {[%clk 0:03:02]} 6. Be2 {[%clk 0:03:00]}  Na6 {[%clk 0:03:01]} 7. O-O {[%clk 0:02:59]}  e5 {[%clk 0:03:02]} 8. Re1 {[%clk 0:02:55]}  exd4 {[%clk 0:02:52]} 9. Nxd4 {[%clk 0:02:54]}  Re8 {[%clk 0:02:45]} 10. Bf1 {[%clk 0:02:51]}  Ng4 {[%clk 0:02:36]} 11. h3 {[%clk 0:02:43]}  Qf6 {[%clk 0:02:29]} 12. Nf3 {[%clk 0:02:35]}  Ne5 {[%clk 0:02:27]} 13. Nxe5 {[%clk 0:02:31]}  Qxe5 {[%clk 0:02:28]} 14. f4 {[%clk 0:02:28]}  Qd4+ {[%clk 0:02:22]} 15. Qxd4 {[%clk 0:02:26]}  Bxd4+ {[%clk 0:02:23]} 16. Kh1 {[%clk 0:02:26]}  Nb4 {[%clk 0:02:21]} 17. Nb5 {[%clk 0:01:55]}  Bb6 {[%clk 0:02:18]} 18. Na3 {[%clk 0:01:39]}  f5 {[%clk 0:01:44]} 19. Bd2 {[%clk 0:01:39]}  a5 {[%clk 0:01:43]} 20. e5 {[%clk 0:01:34]}  dxe5 {[%clk 0:01:41]} 21. fxe5 {[%clk 0:01:32]}  Be6 {[%clk 0:01:41]} 22. Bc3 {[%clk 0:01:28]}  Rad8 {[%clk 0:01:41]} 23. Bxb4 {[%clk 0:00:47]}  axb4 {[%clk 0:01:42]} 24. Nc2 {[%clk 0:00:47]}  Bc5 {[%clk 0:01:35]} 25. Rad1 {[%clk 0:00:46]}  Rxd1 {[%clk 0:01:26]} 26. Rxd1 {[%clk 0:00:46]}  Ra8 {[%clk 0:01:27]} 27. a3 {[%clk 0:00:32]}  bxa3 {[%clk 0:01:24]} 28. bxa3 {[%clk 0:00:32]}  Kf7 {[%clk 0:01:20]} 29. Rd3 {[%clk 0:00:21]}  Ke7 {[%clk 0:01:19]} 30. Rb3 {[%clk 0:00:21]}  b6 {[%clk 0:01:18]} 31. Nb4 {[%clk 0:00:15]}  Bxb4 {[%clk 0:01:18]} 32. Rxb4 {[%clk 0:00:08]}  Rxa3 {[%clk 0:01:18]} 33. Kh2 {[%clk 0:00:05]}  Re3 {[%clk 0:01:17]} 34. c5 {[%clk 0:00:05]}  bxc5 {[%clk 0:01:15]} 35. Rb7 {[%clk 0:00:05]}  Kd7 {[%clk 0:01:15]} 36. Bb5+ {[%clk 0:00:05]}  Kc8 {[%clk 0:01:15]} 37. Ra7 {[%clk 0:00:05]}  Bd5 {[%clk 0:01:11]} 38. Ra5 {[%clk 0:00:01]}  Rxe5 {[%clk 0:01:10]} 39. Ba6+ {[%clk 0:00:01]}  Kd7 {[%clk 0:01:10]} 40. Rxc5 {[%clk 0:00:02]}  c6 {[%clk 0:01:11]} 41. Kg3 {[%clk 0:00:01]}  Kd6 {[%clk 0:01:12]} 42. Rc3 {[%clk 0:00:01]}  g5 {[%clk 0:01:12]} 43. h4 {[%clk 0:00:02]}  h6 {[%clk 0:01:12]} 44. hxg5 {[%clk 0:00:02]}  hxg5 {[%clk 0:01:13]} 45. Kf2 {[%clk 0:00:03]}  f4 {[%clk 0:01:13]} 46. Rh3 {[%clk 0:00:03]}  g4 {[%clk 0:01:13]} 47. Rh4 {[%clk 0:00:02]}  g3+ {[%clk 0:01:13]} 48. Kf1 {[%clk 0:00:03]}  f3 {[%clk 0:01:12]} 49. gxf3 {[%clk 0:00:03]}  Bxf3 {[%clk 0:01:12]} 50. Bd3 {[%clk 0:00:02]}  Ra5 {[%clk 0:01:10]} 51. Rh6+ {[%clk 0:00:02]}  Kc7 {[%clk 0:01:10]} 52. Ke1 {[%clk 0:00:03]}  Ra1+ {[%clk 0:01:09]} 53. Kd2 {[%clk 0:00:03]}  g2 {[%clk 0:01:10]} 54. Rg6 {[%clk 0:00:03]}  g1=Q {[%clk 0:01:11]} 0-1


[Site "https://www.chess.com"]

[Event "Titled Tuesday Blitz February 22 Early 2022"]
[White "Budrewicz, Krzysztof"]
[Black "Indjic, Aleksandar"]
[WhiteFideId "1127950"]
[BlackFideId "911925"]
[WhiteElo "2248"]
[BlackElo "2616"]
[Result "0-1"]
[Round "04"]
[TimeControl "180+1"]
[Date "2022.02.22"]
[WhiteClock "0:00:31"]
[BlackClock "0:00:16"]

1. d4 {[%clk 0:03:00]}  Nf6 {[%clk 0:02:58]} 2. c4 {[%clk 0:03:00]}  c5 {[%clk 0:02:58]} 3. d5 {[%clk 0:03:00]}  g6 {[%clk 0:02:58]} 4. Nc3 {[%clk 0:03:00]}  Bg7 {[%clk 0:02:58]} 5. e4 {[%clk 0:03:01]}  O-O {[%clk 0:02:58]} 6. Nf3 {[%clk 0:03:00]}  d6 {[%clk 0:02:58]} 7. h3 {[%clk 0:02:59]}  e6 {[%clk 0:02:58]} 8. Bd3 {[%clk 0:02:59]}  exd5 {[%clk 0:02:59]} 9. cxd5 {[%clk 0:03:00]}  Re8 {[%clk 0:02:58]} 10. O-O {[%clk 0:02:58]}  Nbd7 {[%clk 0:02:59]} 11. Bf4 {[%clk 0:02:54]}  c4 {[%clk 0:02:58]} 12. Bc2 {[%clk 0:02:53]}  Nc5 {[%clk 0:02:58]} 13. Re1 {[%clk 0:02:51]}  b5 {[%clk 0:02:58]} 14. e5 {[%clk 0:02:47]}  dxe5 {[%clk 0:02:57]} 15. Nxe5 {[%clk 0:02:47]}  Bb7 {[%clk 0:02:42]} 16. Nc6 {[%clk 0:02:40]}  Qb6 {[%clk 0:02:00]} 17. Ne7+ {[%clk 0:01:45]}  Rxe7 {[%clk 0:01:42]} 18. Rxe7 {[%clk 0:01:44]}  b4 {[%clk 0:01:42]} 19. Bc7 {[%clk 0:01:34]}  Qa6 {[%clk 0:01:32]} 20. Ne4 {[%clk 0:01:13]}  Nfxe4 {[%clk 0:00:44]} 21. Bxe4 {[%clk 0:01:12]}  Bxb2 {[%clk 0:00:39]} 22. Rb1 {[%clk 0:01:09]}  Bf6 {[%clk 0:00:37]} 23. d6 {[%clk 0:00:37]}  Bxe4 {[%clk 0:00:35]} 24. Rxe4 {[%clk 0:00:36]}  Nxe4 {[%clk 0:00:33]} 25. Qd5 {[%clk 0:00:37]}  Re8 {[%clk 0:00:17]} 26. d7 {[%clk 0:00:36]}  Re6 {[%clk 0:00:18]} 27. d8=Q+ {[%clk 0:00:34]}  Bxd8 {[%clk 0:00:18]} 28. Qxd8+ {[%clk 0:00:34]}  Kg7 {[%clk 0:00:18]} 29. Qd4+ {[%clk 0:00:34]}  f6 {[%clk 0:00:16]} 30. Qd7+ {[%clk 0:00:33]}  Kh6 {[%clk 0:00:16]} 31. Qxe6 {[%clk 0:00:33]}  Qxe6 {[%clk 0:00:15]} 32. Bf4+ {[%clk 0:00:31]}  g5 {[%clk 0:00:15]} 33. Be3 {[%clk 0:00:31]}  b3 {[%clk 0:00:15]} 34. axb3 {[%clk 0:00:31]}  cxb3 {[%clk 0:00:16]} 0-1


[Site "https://www.chess.com"]